[Event "*** Titled Tuesday Blitz"]
[Site "Chess.com"]
[Date "2019.02.05"]
[Round "10"]
[White "AbdAlAgathos"]
[Black "1e41-0"]
[Result "0-1"]
[WhiteElo "2330"]
[BlackElo "2521"]
[TimeControl "180+2"]
[EndTime "15:31:43 PST"]
[Termination "1e41-0 won by checkmate"]

1. e4 {[%clk 0:02:58.9]} 1... Nf6 {[%clk 0:03:01.1]} 2. e5 {[%clk 0:02:58.8]}
2... Nd5 {[%clk 0:03:02.4]} 3. d4 {[%clk 0:03:00]} 3... d6 {[%clk 0:03:04]} 4.
Nf3 {[%clk 0:03:00.7]} 4... g6 {[%clk 0:03:03.4]} 5. Bc4 {[%clk 0:03:00.3]} 5...
Nb6 {[%clk 0:03:01.8]} 6. Bb3 {[%clk 0:03:00.9]} 6... Bg7 {[%clk 0:03:01.5]} 7.
Qe2 {[%clk 0:03:01.3]} 7... O-O {[%clk 0:03:01.2]} 8. h3 {[%clk 0:02:59.2]} 8...
a5 {[%clk 0:03:02.4]} 9. a4 {[%clk 0:02:57.3]} 9... Nc6 {[%clk 0:03:02.9]} 10.
exd6 {[%clk 0:02:56.9]} 10... exd6 {[%clk 0:03:01.7]} 11. c3 {[%clk 0:02:47.7]}
11... Re8 {[%clk 0:02:36.7]} 12. Be3 {[%clk 0:02:47.4]} 12... Be6 {[%clk
0:02:37]} 13. Bxe6 {[%clk 0:02:35.7]} 13... Rxe6 {[%clk 0:02:38.9]} 14. O-O
{[%clk 0:02:34.4]} 14... h6 {[%clk 0:02:28.9]} 15. Qd2 {[%clk 0:02:34.2]} 15...
Nc4 {[%clk 0:02:28.3]} 16. Qc1 {[%clk 0:02:31.1]} 16... d5 {[%clk 0:02:25.2]}
17. Bxh6 {[%clk 0:02:28.3]} 17... Qf6 {[%clk 0:02:10.7]} 18. Bxg7 {[%clk
0:02:23.5]} 18... Kxg7 {[%clk 0:02:10.1]} 19. Nbd2 {[%clk 0:02:22.6]} 19... Nd6
{[%clk 0:02:06.7]} 20. Qc2 {[%clk 0:02:19.3]} 20... Qf4 {[%clk 0:01:54.7]} 21.
Rae1 {[%clk 0:02:18.4]} 21... Ne4 {[%clk 0:01:55.7]} 22. Re3 {[%clk 0:02:04.7]}
22... Rae8 {[%clk 0:01:53.5]} 23. Rfe1 {[%clk 0:01:57.9]} 23... f5 {[%clk
0:01:44.4]} 24. c4 {[%clk 0:01:28.1]} 24... Nb4 {[%clk 0:01:30.3]} 25. Qd1
{[%clk 0:01:26.3]} 25... c6 {[%clk 0:01:29]} 26. cxd5 {[%clk 0:01:10]} 26...
Nxd5 {[%clk 0:01:27.6]} 27. Rb3 {[%clk 0:01:06.5]} 27... Nxd2 {[%clk 0:01:18.7]}
28. Rxe6 {[%clk 0:01:05.9]} 28... Rxe6 {[%clk 0:01:12.5]} 29. Rxb7+ {[%clk
0:01:01.5]} 29... Kf6 {[%clk 0:00:49.6]} 30. Qxd2 {[%clk 0:01:00.4]} 30... Qxd2
{[%clk 0:00:46.4]} 31. Nxd2 {[%clk 0:01:02.3]} 31... Re1+ {[%clk 0:00:46.4]} 32.
Kh2 {[%clk 0:01:02.7]} 32... Ra1 {[%clk 0:00:48.3]} 33. b3 {[%clk 0:00:56.6]}
33... Ra2 {[%clk 0:00:42.5]} 34. Nc4 {[%clk 0:00:57.4]} 34... Rxf2 {[%clk
0:00:43.2]} 35. Nxa5 {[%clk 0:00:55.9]} 35... Ne3 {[%clk 0:00:38.3]} 36. Kg3
{[%clk 0:00:55.8]} 36... Rf1 {[%clk 0:00:37.3]} 37. Nxc6 {[%clk 0:00:52.1]}
37... f4+ {[%clk 0:00:38.7]} 38. Kh2 {[%clk 0:00:52]} 38... Rf2 {[%clk
0:00:36.5]} 39. Ne5 {[%clk 0:00:51.6]} 39... Rxg2+ {[%clk 0:00:37.5]} 40. Kh1
{[%clk 0:00:51.6]} 40... Rd2 {[%clk 0:00:36.8]} 41. Rf7+ {[%clk 0:00:44.5]}
41... Ke6 {[%clk 0:00:36.3]} 42. Rxf4 {[%clk 0:00:44.5]} 42... Nf5 {[%clk
0:00:28.3]} 43. Nc4 {[%clk 0:00:28.3]} 43... Ra2 {[%clk 0:00:19.3]} 44. Rg4
{[%clk 0:00:21.6]} 44... Kd5 {[%clk 0:00:16.2]} 45. Rxg6 {[%clk 0:00:19.5]}
45... Nxd4 {[%clk 0:00:17.2]} 46. Rg4 {[%clk 0:00:18.1]} 46... Nf3 {[%clk
0:00:16]} 47. Ne3+ {[%clk 0:00:18.1]} 47... Ke6 {[%clk 0:00:14.4]} 48. Nf1
{[%clk 0:00:19.9]} 48... Rf2 {[%clk 0:00:13.9]} 49. Rg1 {[%clk 0:00:18.4]} 49...
Nxg1 {[%clk 0:00:12.2]} 50. Kxg1 {[%clk 0:00:20.3]} 50... Rf3 {[%clk 0:00:13.2]}
51. Kg2 {[%clk 0:00:20.9]} 51... Rxb3 {[%clk 0:00:14.1]} 52. Ng3 {[%clk
0:00:21.8]} 52... Ra3 {[%clk 0:00:15.2]} 53. h4 {[%clk 0:00:22.8]} 53... Rxa4
{[%clk 0:00:16.7]} 54. Kh3 {[%clk 0:00:23.1]} 54... Kf6 {[%clk 0:00:17.9]} 55.
Nh5+ {[%clk 0:00:23.1]} 55... Kg6 {[%clk 0:00:18.8]} 56. Ng3 {[%clk 0:00:25]}
56... Kf6 {[%clk 0:00:18.7]} 57. Nh5+ {[%clk 0:00:24.8]} 57... Kf5 {[%clk
0:00:19.6]} 58. Ng3+ {[%clk 0:00:24.9]} 58... Kf4 {[%clk 0:00:21.1]} 59. Nh5+
{[%clk 0:00:23.9]} 59... Kf3 {[%clk 0:00:22.5]} 60. Nf6 {[%clk 0:00:24.7]} 60...
Ra1 {[%clk 0:00:22.4]} 61. Kh2 {[%clk 0:00:22.8]} 61... Ra4 {[%clk 0:00:21.4]}
62. Kh3 {[%clk 0:00:23.3]} 62... Ra1 {[%clk 0:00:20.1]} 63. Kh2 {[%clk
0:00:24.2]} 63... Ra6 {[%clk 0:00:21.4]} 64. Nd5 {[%clk 0:00:19.3]} 64... Kg4
{[%clk 0:00:21.7]} 65. Kg2 {[%clk 0:00:18.6]} 65... Ra2+ {[%clk 0:00:22.8]} 66.
Kf1 {[%clk 0:00:19.6]} 66... Kxh4 {[%clk 0:00:24.4]} 67. Ke1 {[%clk 0:00:20.4]}
67... Kg3 {[%clk 0:00:25.2]} 68. Nc3 {[%clk 0:00:19.6]} 68... Rc2 {[%clk
0:00:24.6]} 69. Ne2+ {[%clk 0:00:18.1]} 69... Kg4 {[%clk 0:00:25.8]} 70. Kd1
{[%clk 0:00:18.5]} 70... Ra2 {[%clk 0:00:26.4]} 71. Nc3 {[%clk 0:00:19.1]} 71...
Rh2 {[%clk 0:00:26.9]} 72. Ne2 {[%clk 0:00:19.6]} 72... Kf3 {[%clk 0:00:27.8]}
73. Nc3 {[%clk 0:00:19.8]} 73... Ke3 {[%clk 0:00:28.3]} 74. Kc1 {[%clk
0:00:20.3]} 74... Kd3 {[%clk 0:00:28.2]} 75. Nb1 {[%clk 0:00:14.6]} 75... Ra2
{[%clk 0:00:26.6]} 76. Kd1 {[%clk 0:00:11]} 76... Rh2 {[%clk 0:00:18.7]} 77. Kc1
{[%clk 0:00:11.5]} 77... Rc2+ {[%clk 0:00:18]} 78. Kd1 {[%clk 0:00:12.3]} 78...
Rb2 {[%clk 0:00:18.4]} 79. Kc1 {[%clk 0:00:13.2]} 79... Rb8 {[%clk 0:00:18.1]}
80. Nd2 {[%clk 0:00:10.6]} 80... Rc8+ {[%clk 0:00:17.9]} 81. Kd1 {[%clk
0:00:11.5]} 81... Ra8 {[%clk 0:00:19.5]} 82. Nb1 {[%clk 0:00:12.6]} 82... Ra2
{[%clk 0:00:19.8]} 83. Kc1 {[%clk 0:00:13.2]} 83... Rg2 {[%clk 0:00:20.3]} 84.
Na3 {[%clk 0:00:11.3]} 84... Kc3 {[%clk 0:00:20.1]} 85. Nb1+ {[%clk 0:00:11.1]}
85... Kd3 {[%clk 0:00:20]} 86. Na3 {[%clk 0:00:08.2]} 86... Rf2 {[%clk
0:00:19.5]} 87. Nb1 {[%clk 0:00:06.7]} 87... Rh2 {[%clk 0:00:18.2]} 88. Na3
{[%clk 0:00:07.4]} 88... Kd4 {[%clk 0:00:18]} 89. Nb1 {[%clk 0:00:07]} 89... Kc4
{[%clk 0:00:19.5]} 90. Nd2+ {[%clk 0:00:03.9]} 90... Kc3 {[%clk 0:00:18.1]} 91.
Nb1+ {[%clk 0:00:05.8]} 91... Kd3 {[%clk 0:00:17.9]} 92. Kd1 {[%clk 0:00:07]}
92... Rh1# {[%clk 0:00:18.5]} 0-1